bitfinex-derivatives/quotes_BTCF0:USTF0_20250308
["timestamp","ask_amount","ask_price","bid_price","bid_amount"]
[1741438414421,0.01740001,86322.0,86321.0,0.16370453]
[1741438414615,0.09892001,86322.0,86321.0,0.16370688]
[1741438414823,0.09892001,86322.0,86321.0,0.17813738]
[1741438415037,0.09892001,86322.0,86321.0,0.17856897]
[1741438416022,0.08152,86322.0,86321.0,0.17856897]
[1741438416414,0.09892001,86322.0,86321.0,0.17856897]
[1741438417129,0.09892001,86322.0,86321.0,0.17859102]
[1741438418523,0.07283808,86322.0,86321.0,0.24109102]
[1741438418927,0.07283808,86322.0,86321.0,0.24103261]
[1741438419430,0.07283808,86322.0,86321.0,0.27283261]
[1741438420328,0.18870418,86322.0,86321.0,0.12516511]
[1741438420530,0.22040418,86322.0,86321.0,0.24103261]
[1741438421223,0.10453808,86322.0,86321.0,0.51576732]
[1741438421530,0.10453808,86322.0,86321.0,0.87656732]
[1741438422537,0.22040418,86322.0,86321.0,0.87656732]
[1741438422931,0.22040418,86322.0,86321.0,0.87655832]
[1741438424026,0.10453808,86322.0,86321.0,0.87655832]
[1741438424426,0.10453808,86322.0,86321.0,0.60182361]
[1741438424624,0.07283808,86322.0,86321.0,0.60182361]
[1741438424831,0.07283808,86322.0,86321.0,0.63312361]
[1741438425624,0.01740001,86322.0,86321.0,0.63315268]
[1741438426926,0.01740001,86322.0,86321.0,0.63293025]
[1741438427926,0.13326611,86322.0,86321.0,0.63293025]
[1741438428130,0.01740001,86322.0,86321.0,0.60163025]
[1741438428840,0.01740001,86322.0,86321.0,0.58831088]
[1741438429028,0.01740001,86322.0,86321.0,0.6715874]
[1741438429231,0.00011508,86327.0,86321.0,0.69566395]
[1741438429433,0.01740001,86323.0,86322.0,0.31346857]
[1741438429737,0.01740001,86323.0,86322.0,0.34376857]
[1741438429937,0.01740001,86323.0,86322.0,0.37556857]
[1741438430330,0.01740001,86324.0,86323.0,0.1158648]
[1741438430530,0.01740001,86324.0,86323.0,0.31763467]
[1741438430933,0.01740001,86324.0,86323.0,0.35614172]
[1741438431133,0.01740001,86324.0,86323.0,0.32746447]
[1741438431329,0.01740001,86324.0,86323.0,0.30578245]
[1741438431635,0.01740001,86327.0,86323.0,0.18991765]
[1741438431837,0.01740001,86327.0,86326.0,0.1158608]
[1741438432038,0.01740001,86327.0,86326.0,0.20516987]
[1741438432641,0.01740001,86327.0,86326.0,0.26726987]
[1741438432935,0.01740001,86327.0,86326.0,0.30577692]
[1741438433141,0.01740001,86327.0,86326.0,0.26455173]
[1741438433345,0.01740001,86327.0,86326.0,0.30505333]
[1741438433644,0.0087215,86331.0,86330.0,0.1158554]
[1741438433849,0.0087215,86331.0,86330.0,0.53636621]
[1741438434041,0.0087215,86331.0,86330.0,0.55079671]
[1741438434436,0.0087215,86331.0,86330.0,0.61289671]
[1741438434437,0.0724215,86331.0,86330.0,0.61289671]
[1741438434934,0.0724215,86331.0,86330.0,0.61295791]
[1741438435645,0.0414215,86331.0,86330.0,0.61295791]
[1741438436146,0.01740001,86331.0,86330.0,0.61295791]
[1741438436930,0.01740001,86331.0,86330.0,0.61296079]
[1741438437141,0.01740001,86331.0,86330.0,0.6125491]
[1741438438035,0.01740001,86331.0,86330.0,0.59140284]
[1741438439045,0.01740001,86331.0,86330.0,0.57977591]
[1741438439439,0.01740001,86331.0,86330.0,0.59147657]
[1741438440449,0.01740001,86331.0,86330.0,0.61296294]
[1741438442339,0.01740001,86331.0,86330.0,0.59152341]
[1741438443345,0.01740001,86331.0,86330.0,0.61299015]
[1741438443543,0.13325401,86331.0,86330.0,0.61299015]
[1741438443752,0.01740001,86331.0,86330.0,0.61299015]
[1741438444048,0.13325401,86331.0,86330.0,0.61299015]
[1741438444444,0.13325401,86331.0,86330.0,0.59152341]
[1741438444646,0.01740001,86331.0,86330.0,0.59152341]
[1741438445348,0.19705401,86331.0,86330.0,0.59152341]
[1741438445552,0.08120001,86331.0,86330.0,0.59152341]
[1741438446053,0.19705401,86331.0,86330.0,0.57982275]
[1741438446346,0.08120001,86331.0,86330.0,0.20580662]
[1741438446541,0.08120001,86331.0,86330.0,0.56660662]
[1741438447146,0.08120001,86331.0,86330.0,0.57940396]
[1741438447445,0.01740001,86331.0,86330.0,0.60090016]
[1741438447852,0.13325401,86331.0,86330.0,0.60090016]
[1741438448052,0.13325401,86331.0,86330.0,0.24010016]
[1741438448252,0.13325401,86331.0,86330.0,0.2273207]
[1741438448446,0.13325401,86331.0,86330.0,0.20582236]
[1741438449251,0.01740001,86331.0,86330.0,0.20582236]
[1741438449452,0.01740001,86331.0,86330.0,0.56662236]
[1741438450744,0.07880001,86331.0,86330.0,0.56662236]
[1741438451249,0.19465401,86331.0,86330.0,0.56662236]
[1741438451449,0.07880001,86331.0,86330.0,0.56662236]
[1741438451644,0.01740001,86331.0,86330.0,0.56662236]
[1741438452043,0.09888001,86331.0,86330.0,0.56662236]
[1741438452251,0.09888001,86331.0,86330.0,0.56652531]
[1741438452448,0.01740001,86331.0,86330.0,0.56652531]
[1741438452665,0.0020202,90964.0,86339.0,0.1158433]
[1741438452666,1.09092,86348.0,86339.0,0.1158433]
[1741438452864,0.09888001,86340.0,86339.0,0.50441321]
[1741438454168,0.21472201,86340.0,86339.0,0.50441321]
[1741438454361,0.21472201,86340.0,86339.0,0.50541321]
[1741438454962,0.22356726,86340.0,86339.0,0.50541321]
[1741438455664,0.10772526,86340.0,86339.0,0.50541321]
[1741438456065,0.10772526,86340.0,86339.0,0.59961321]
[1741438456260,0.09032525,86340.0,86339.0,0.59961321]
[1741438456563,0.10772526,86340.0,86339.0,0.59961321]
[1741438457264,0.10772526,86340.0,86339.0,0.56641321]
[1741438457859,0.17092526,86340.0,86339.0,0.56641321]
[1741438458371,0.10772526,86340.0,86339.0,0.56641321]
[1741438460075,0.01740001,86340.0,86339.0,0.56641321]
[1741438460370,0.01740001,86340.0,86339.0,0.5662789]
[1741438460769,0.09888001,86341.0,86340.0,0.115842]
[1741438460968,0.09888001,86341.0,86340.0,0.1896471]
[1741438461571,0.01740001,86341.0,86340.0,0.1896471]
[1741438461867,0.01740001,86341.0,86340.0,0.5504471]
[1741438462071,0.01740001,86341.0,86340.0,0.5514471]
[1741438462573,0.01740001,86341.0,86340.0,0.5524471]
[1741438464675,0.01740001,86341.0,86340.0,0.5544471]
[1741438464872,0.01740001,86341.0,86340.0,0.5554471]
[1741438465972,0.01740001,86341.0,86340.0,0.5564471]
[1741438466171,0.01740001,86341.0,86340.0,0.90021625]
[1741438466363,0.01740001,86341.0,86340.0,0.90017567]
[1741438467070,0.73012,86348.0,86347.0,0.1158326]
[1741438467379,0.73012,86348.0,86347.0,0.48979712]
[1741438467773,0.8459512,86348.0,86347.0,0.48979712]
[1741438467976,0.8459512,86348.0,86347.0,0.55359712]
[1741438467977,0.73012,86348.0,86347.0,0.55359712]
[1741438468176,0.8459512,86348.0,86347.0,0.55359712]
[1741438468674,0.73012,86348.0,86347.0,0.55359712]
[1741438469665,0.76222,86348.0,86347.0,0.55359712]
[1741438470175,0.76222,86348.0,86347.0,0.5424326]
[1741438470378,0.76222,86348.0,86347.0,0.55557638]
[1741438471873,0.8780512,86348.0,86347.0,0.55557638]
[1741438472679,0.76222,86348.0,86347.0,0.55557638]
[1741438473080,0.76222,86348.0,86347.0,0.55357638]
[1741438473275,0.76222,86348.0,86347.0,0.55557638]
[1741438473782,0.8780512,86348.0,86347.0,0.55557638]
[1741438474175,0.8780512,86348.0,86347.0,0.5404326]
[1741438474380,0.8780512,86348.0,86347.0,0.55347958]
[1741438475583,0.8780512,86348.0,86347.0,0.19267958]
[1741438475970,0.89545121,86348.0,86347.0,0.19267958]
[1741438476171,0.8780512,86348.0,86347.0,0.1796326]
[1741438476374,0.89545121,86348.0,86347.0,0.07688087]
[1741438481582,0.74752001,86348.0,86347.0,0.19271347]
[1741438481785,0.86335121,86348.0,86347.0,0.55351347]
[1741438481987,0.86335121,86348.0,86347.0,0.19271347]
[1741438483075,0.86335121,86348.0,86347.0,0.28253416]
[1741438484283,0.94483121,86348.0,86347.0,0.28255382]
[1741438484576,0.94483121,86348.0,86347.0,0.24995382]
[1741438485181,1.30563121,86348.0,86347.0,0.24995382]
[1741438485582,1.30764727,86348.0,86347.0,0.21875382]
[1741438485785,1.30764727,86348.0,86347.0,0.01310053]
[1741438486174,1.30764727,86348.0,86347.0,0.01306126]
[1741438487884,1.30764727,86348.0,86345.0,0.20565329]
[1741438488191,0.1158339,86346.0,86345.0,0.20565329]
[1741438488378,0.1158339,86346.0,86345.0,0.21867871]
[1741438488778,0.1765339,86346.0,86345.0,0.21867871]
[1741438490394,0.1765339,86346.0,86345.0,0.01301684]
[1741438491583,0.17855001,86346.0,86345.0,0.01301684]
[1741438492182,0.06271611,86346.0,86345.0,0.01303472]
[1741438492382,0.17855001,86346.0,86345.0,0.01303472]
[1741438493691,0.1158379,86343.0,86342.0,0.0635]
[1741438493890,0.1158379,86343.0,86342.0,0.07652535]
[1741438494391,0.06271611,86346.0,86331.0,0.36097374]
[1741438494392,0.1158527,86332.0,86331.0,0.36097374]
[1741438494590,0.1972927,86332.0,86331.0,0.39417374]
[1741438495577,0.08144,86332.0,86331.0,0.51002774]
[1741438495787,0.1972927,86332.0,86331.0,0.54082774]
[1741438496392,0.21469271,86332.0,86331.0,0.54082774]
[1741438497991,0.09884001,86332.0,86331.0,0.54082774]
[1741438499592,0.21469271,86332.0,86331.0,0.54082774]
[1741438503893,0.09884001,86332.0,86331.0,0.54082774]
[1741438504302,0.21469271,86332.0,86331.0,0.54082774]
[1741438505296,0.09884001,86332.0,86331.0,0.54082774]
[1741438505792,0.01740001,86332.0,86331.0,0.55238666]
[1741438505998,0.09884001,86332.0,86331.0,0.55238666]
[1741438506200,0.09884001,86332.0,86331.0,0.56540112]
[1741438506891,0.09884001,86332.0,86331.0,0.57971095]
[1741438507488,0.01740001,86332.0,86331.0,0.57971095]
[1741438507694,0.09884001,86332.0,86331.0,0.58273806]
[1741438508390,0.09884001,86332.0,86331.0,0.57973806]
[1741438508590,0.09884001,86332.0,86331.0,0.58273806]
[1741438509692,0.09884001,86332.0,86331.0,0.58373451]
[1741438510297,0.09884001,86332.0,86331.0,0.58173451]
[1741438510496,0.09884001,86332.0,86331.0,0.59442797]
[1741438510895,0.09884001,86332.0,86331.0,0.59542797]
[1741438511396,0.09884001,86332.0,86331.0,0.59742797]
[1741438511593,0.09884001,86332.0,86331.0,0.58473451]
[1741438511793,0.09884001,86332.0,86331.0,0.57320163]
[1741438512387,0.09884001,86332.0,86331.0,0.58498776]
[1741438512599,0.09884001,86332.0,86331.0,0.58398776]
[1741438513592,0.09884001,86332.0,86331.0,0.5669237]
[1741438513791,0.09884001,86332.0,86331.0,0.58289422]
[1741438514398,0.09884001,86332.0,86331.0,0.59419133]
[1741438514594,0.09884001,86332.0,86331.0,0.59319133]
[1741438515398,0.09884001,86332.0,86331.0,0.86739572]
[1741438515591,0.09884001,86332.0,86331.0,0.85333859]
[1741438515797,0.09884001,86332.0,86331.0,0.86645875]
[1741438516198,0.08144,86332.0,86331.0,0.86645875]
[1741438516410,0.09884001,86332.0,86331.0,0.86645875]
[1741438517311,0.01740001,86332.0,86331.0,0.86645875]
[1741438517513,0.09884001,86332.0,86331.0,0.86645875]
[1741438517714,0.01740001,86336.0,86335.0,0.1158487]
[1741438518016,0.08144,86347.0,86346.0,0.1158339]
[1741438518222,0.08144,86347.0,86346.0,0.50245781]
[1741438518617,0.08144,86347.0,86346.0,0.51676764]
[1741438518807,0.1972726,86347.0,86346.0,0.51676764]
[1741438519614,0.08144,86347.0,86346.0,0.51676764]
[1741438519923,0.08144,86347.0,86346.0,0.51687301]
[1741438521017,0.08144,86347.0,86346.0,0.7912919]
[1741438521616,0.73012,86348.0,86347.0,0.1158326]
[1741438521915,0.81156,86348.0,86347.0,0.14171446]
[1741438522115,0.81156,86348.0,86347.0,0.18812429]
[1741438523620,0.81156,86348.0,86347.0,0.17504732]
[1741438523920,0.81156,86348.0,86347.0,0.39379188]
[1741438525321,0.87486,86348.0,86347.0,0.41747895]
[1741438525520,0.84356,86348.0,86347.0,0.41747895]
[1741438525720,0.81156,86348.0,86347.0,0.41747895]
[1741438526119,0.81156,86348.0,86347.0,0.39379188]
[1741438526422,0.9273912,86348.0,86347.0,0.39379188]
[1741438526619,0.9915912,86348.0,86347.0,0.39379188]
[1741438527521,0.9915912,86348.0,86347.0,0.39479188]
[1741438528017,0.87576,86348.0,86347.0,0.39479188]
[1741438528617,0.9915912,86348.0,86347.0,0.39479188]
[1741438529413,0.9915912,86348.0,86347.0,0.42549188]
[1741438530721,0.9915912,86348.0,86347.0,0.21983214]
[1741438532219,0.9915912,86348.0,86347.0,0.07189954]
[1741438532420,0.87576,86348.0,86347.0,0.07189954]
[1741438532721,0.9915912,86348.0,86347.0,0.18773214]
[1741438533327,0.81156,86348.0,86347.0,0.21833214]
[1741438533713,0.81152,86348.0,86347.0,0.57913214]
[1741438533920,0.73012,86348.0,86347.0,0.57913214]
[1741438534336,0.01740001,86358.0,86357.0,0.1158192]
[1741438534630,0.01740001,86358.0,86357.0,0.51681874]
[1741438535219,0.01740001,86358.0,86357.0,0.58181874]
[1741438536020,0.1972134,86362.0,86361.0,0.1158138]
[1741438536325,0.1972134,86362.0,86361.0,0.14170351]
[1741438536530,0.21461341,86362.0,86361.0,0.15601334]
[1741438536823,0.21461341,86362.0,86361.0,0.14320845]
[1741438537021,0.21461341,86362.0,86361.0,0.09239465]
[1741438537222,0.21461341,86362.0,86361.0,0.05929465]
[1741438538232,0.21461341,86362.0,86361.0,0.04498482]
[1741438538528,0.21461341,86362.0,86361.0,0.04598482]
[1741438538720,0.09880001,86362.0,86361.0,0.16179862]
[1741438538925,0.09880001,86362.0,86361.0,0.17456165]
[1741438539431,0.09880001,86362.0,86361.0,0.18909876]
[1741438539936,0.09880001,86362.0,86361.0,0.18809876]
[1741438541221,0.21461251,86362.0,86361.0,0.18809876]
[1741438541421,0.21461251,86362.0,86361.0,0.07228496]
[1741438542033,0.57541251,86362.0,86361.0,0.04038496]
[1741438542528,0.63971251,86362.0,86361.0,0.02727832]
[1741438543325,0.63971251,86362.0,86361.0,0.04039336]
[1741438545822,0.27891251,86362.0,86361.0,0.04039336]
[1741438547235,0.63971251,86362.0,86361.0,0.04039336]
[1741438547437,1.36959251,86362.0,86361.0,0.04039336]
[1741438547740,1.37160828,86362.0,86361.0,0.04039336]
[1741438548238,1.37160828,86362.0,86361.0,0.04046398]
[1741438548827,1.52160828,86362.0,86361.0,0.02770095]
[1741438550339,1.52160828,86362.0,86361.0,0.01451529]
[1741438553945,1.37160828,86362.0,86361.0,0.01451529]
[1741438555540,1.43586067,86362.0,86351.0,0.0641]
[1741438555738,0.4766259,86352.0,86351.0,0.0641]
[1741438556036,0.4766259,86352.0,86351.0,0.07722584]
[1741438556238,0.63253241,86352.0,86351.0,0.07722584]
[1741438556439,0.63253241,86352.0,86351.0,0.0641]
[1741438556639,0.69663241,86352.0,86351.0,0.0641]
[1741438556829,0.72833241,86352.0,86351.0,0.07722721]
[1741438557035,0.72833241,86352.0,86351.0,0.0641]
[1741438558045,0.73034841,86352.0,86351.0,0.0641]
[1741438558747,0.73034841,86352.0,86351.0,0.0326]
[1741438559437,0.72833241,86352.0,86351.0,0.0326]
[1741438559637,0.7396296,86352.0,86351.0,0.0326]
[1741438559837,0.74164565,86352.0,86351.0,0.0326]
[1741438561739,0.38084565,86352.0,86351.0,0.0326]
[1741438561938,0.74164565,86352.0,86351.0,0.0326]
[1741438563541,0.71054565,86352.0,86351.0,0.0326]
[1741438564244,0.34974565,86352.0,86351.0,0.0326]
[1741438564546,0.34974565,86352.0,86351.0,0.0647]
[1741438565547,0.3477296,86352.0,86351.0,0.07780564]
[1741438565745,0.31674565,86352.0,86351.0,0.07780564]
[1741438566150,0.31674565,86352.0,86351.0,0.0647]
[1741438566541,0.28504565,86352.0,86351.0,0.0647]
[1741438567941,0.28504565,86352.0,86351.0,0.07743434]
[1741438568445,0.28504565,86352.0,86351.0,0.1049606]
[1741438568643,0.28504565,86352.0,86351.0,0.10495885]
[1741438568844,0.36644565,86352.0,86351.0,0.10495885]
[1741438569446,0.22793915,86352.0,86351.0,0.10495885]
[1741438570643,0.22793915,86352.0,86351.0,0.09179419]
[1741438570849,0.10081606,86352.0,86351.0,0.22086365]
[1741438571051,0.13524196,86352.0,86351.0,0.10503645]
[1741438571349,0.10081606,86352.0,86351.0,0.22086365]
[1741438571954,0.10081606,86352.0,86351.0,0.24187904]
[1741438572341,0.09880001,86352.0,86351.0,0.24187904]
[1741438572749,0.09880001,86352.0,86351.0,0.24189239]
[1741438572944,0.07472752,86352.0,86351.0,0.24189239]
[1741438573550,0.07572752,86352.0,86351.0,0.24189239]
[1741438573853,0.07572752,86352.0,86351.0,0.26571729]
[1741438574053,0.04865528,86352.0,86351.0,0.26571729]
[1741438574554,0.04765528,86352.0,86351.0,0.26571729]
[1741438574755,0.04765528,86352.0,86351.0,0.26608493]
[1741438574945,0.04765528,86352.0,86351.0,0.12926668]
[1741438575142,0.16348118,86352.0,86351.0,0.12926668]
[1741438575455,0.17531048,86352.0,86351.0,0.12926668]
[1741438575654,0.60171048,86352.0,86351.0,0.12926668]
[1741438575848,0.60171048,86352.0,86351.0,0.10544178]
[1741438576049,0.60171048,86352.0,86351.0,0.09217898]
[1741438576245,0.60171048,86352.0,86351.0,0.10537823]
[1741438576449,0.61911049,86352.0,86351.0,0.09217898]
[1741438576754,0.64973063,86352.0,86351.0,0.09217898]
[1741438576953,0.64973063,86352.0,86351.0,0.07905985]
[1741438577348,0.64973063,86352.0,86351.0,0.0647]
[1741438577552,0.75160473,86352.0,86342.0,0.25148402]
[1741438577755,0.75160473,86352.0,86342.0,0.1999501]
[1741438577756,0.4766379,86343.0,86342.0,0.1999501]
[1741438578249,0.68469835,86343.0,86342.0,0.1999501]
[1741438578451,0.53469835,86343.0,86342.0,0.1999501]
[1741438578654,0.68469835,86343.0,86342.0,0.1999501]
[1741438579451,0.68469835,86343.0,86342.0,0.2009501]
[1741438579652,0.68469835,86343.0,86342.0,0.0373916]
[1741438579852,0.73469835,86343.0,86342.0,0.0363916]
[1741438580156,0.73469835,86343.0,86320.0,0.0305]
[1741438580157,0.1158675,86321.0,86320.0,0.0305]
[1741438580344,0.9273075,86321.0,86320.0,0.04357957]
[1741438580543,0.9243075,86321.0,86320.0,0.04357957]
[1741438580757,0.9243075,86321.0,86320.0,0.04357476]
[1741438581146,0.93576326,86321.0,86320.0,0.04357476]
[1741438581550,0.98486327,86321.0,86320.0,0.04557476]
[1741438582355,0.98486327,86321.0,86320.0,0.0325]
[1741438583058,1.05417609,86321.0,86320.0,0.002]
[1741438583255,0.1158728,86317.0,86316.0,0.0328]
[1741438583645,0.25567019,86317.0,86316.0,0.0328]
[1741438584046,0.1158742,86316.0,86315.0,0.20601189]
[1741438584248,0.1158742,86316.0,86312.0,0.00017374]
[1741438584249,0.1158782,86313.0,86312.0,0.00017374]
[1741438584453,0.4766782,86313.0,86312.0,0.00017374]
[1741438584652,0.6943782,86313.0,86312.0,0.00017374]
[1741438584954,0.1158863,86307.0,86306.0,0.033]
[1741438585156,0.4149863,86307.0,86306.0,0.033]
[1741438585362,0.115897,86299.0,86298.0,0.0315]
[1741438585552,0.476697,86299.0,86298.0,0.0645]
[1741438586252,0.537697,86299.0,86298.0,0.0645]
[1741438586455,0.536697,86299.0,86298.0,0.0645]
[1741438586655,0.53871427,86299.0,86298.0,0.0645]
[1741438587260,0.53871427,86299.0,86298.0,0.0735]
[1741438588750,0.50641427,86299.0,86298.0,0.0735]
[1741438589461,0.143597,86299.0,86298.0,0.0735]
[1741438589662,0.14561427,86299.0,86298.0,0.0735]
[1741438589859,0.00201727,86299.0,86298.0,0.0735]
[1741438590063,0.08341727,86299.0,86298.0,0.1893984]
[1741438590259,0.08341727,86299.0,86298.0,0.1843984]
[1741438590461,0.00201727,86299.0,86298.0,0.1843984]
[1741438590757,0.0814,86299.0,86298.0,0.1843984]
[1741438590962,0.0814,86299.0,86298.0,0.19745025]
[1741438591264,0.0814,86299.0,86298.0,0.1843984]
[1741438594361,0.0814,86299.0,86298.0,0.0685]
[1741438594664,0.0814,86299.0,86298.0,0.1843984]
[1741438594864,0.0814,86299.0,86298.0,0.19739812]
[1741438595260,0.0814,86299.0,86298.0,0.19737465]
[1741438595565,0.0814,86299.0,86298.0,0.55817465]
[1741438595760,0.197297,86299.0,86298.0,0.4293]
[1741438595961,0.21469701,86299.0,86298.0,0.0685]
[1741438596161,0.21469701,86299.0,86298.0,0.0635]
[1741438596368,0.197297,86299.0,86298.0,0.0635]
[1741438596565,0.21469701,86299.0,86298.0,0.0635]
[1741438597162,0.60559701,86299.0,86298.0,0.033]
[1741438597361,0.24579701,86299.0,86298.0,0.033]
[1741438598663,0.24781428,86299.0,86298.0,0.033]
[1741438599456,0.13291728,86299.0,86287.0,0.3608]
[1741438599665,0.13291728,86299.0,86259.0,0.00173886]
[1741438599666,0.1159078,86291.0,86288.0,0.064]
[1741438601064,0.12741534,86291.0,86288.0,0.064]
[1741438601759,0.12943279,86291.0,86288.0,0.064]
[1741438603864,0.13543279,86291.0,86290.0,0.00117374]
[1741438604568,0.21481534,86291.0,86290.0,0.00117374]
[1741438604769,0.21683282,86291.0,86290.0,0.00117374]
[1741438606261,0.21783282,86291.0,86290.0,0.00117374]
[1741438607165,0.21683282,86291.0,86290.0,0.00117374]
[1741438607565,0.21481534,86291.0,86290.0,0.00117374]
[1741438607867,0.21683282,86291.0,86290.0,0.00117374]
[1741438608575,0.21683282,86291.0,86290.0,0.01417747]
[1741438609768,0.21083282,86291.0,86290.0,0.01317747]
[1741438609971,0.21783282,86291.0,86290.0,0.01417747]
[1741438610371,0.21581534,86291.0,86290.0,0.01417747]
[1741438610774,0.21783281,86291.0,86290.0,0.01417747]
[1741438612375,0.21783281,86291.0,86290.0,0.01419616]
[1741438614377,0.21783281,86291.0,86290.0,0.01418625]
[1741438615476,0.94831281,86291.0,86290.0,0.01418625]
[1741438616175,0.96571282,86291.0,86290.0,0.01418625]
[1741438617279,0.96571282,86291.0,86290.0,0.00117374]
[1741438619581,0.96571282,86291.0,86290.0,0.03117374]
[1741438620579,0.1159212,86281.0,86280.0,0.3608]
[1741438621285,0.11793884,86281.0,86280.0,0.3608]
[1741438621886,0.15003884,86281.0,86280.0,0.3608]
[1741438622279,0.15003884,86281.0,86280.0,0.3916]
[1741438623387,0.15403884,86281.0,86280.0,0.3916]
[1741438625483,0.15403884,86281.0,86280.0,0.0308]
[1741438626188,0.12193884,86281.0,86280.0,0.0308]
[1741438626579,0.29144119,86281.0,86280.0,0.0308]
[1741438626780,0.32294119,86281.0,86280.0,0.0308]
[1741438626981,0.38624119,86281.0,86280.0,0.0308]
[1741438627985,0.74704119,86281.0,86280.0,0.0308]
[1741438628379,0.74502355,86281.0,86280.0,0.0308]
[1741438628885,0.74704129,86281.0,86280.0,0.0308]
[1741438630084,0.92024281,86281.0,86280.0,0.0308]
[1741438630989,0.1159319,86273.0,86272.0,0.00017385]
[1741438631184,0.5581319,86273.0,86272.0,0.00017385]
[1741438631984,0.6220319,86273.0,86272.0,0.00017385]
[1741438632386,0.11594,86267.0,86266.0,0.0322]
[1741438632687,0.12769161,86267.0,86266.0,0.0322]
[1741438632882,0.26560649,86267.0,86266.0,0.0322]
[1741438633282,0.32910649,86267.0,86266.0,0.0322]
[1741438634787,0.32910649,86267.0,86266.0,0.0332]
[1741438636287,0.3465065,86267.0,86266.0,0.0332]
[1741438636988,0.7073065,86267.0,86266.0,0.0332]
[1741438637385,0.3465065,86267.0,86266.0,0.0332]
[1741438637593,0.7073065,86267.0,86266.0,0.0332]
[1741438637786,0.9250065,86267.0,86266.0,0.0332]
[1741438638488,1.06377242,86267.0,86266.0,0.0332]
[1741438638988,1.06579052,86267.0,86266.0,0.0332]
[1741438640590,1.06377242,86267.0,86266.0,0.0332]
[1741438640791,1.06579052,86267.0,86266.0,0.0332]
[1741438641884,0.70499052,86267.0,86266.0,0.0332]
[1741438642595,0.5662246,86267.0,86266.0,0.0332]
[1741438643192,0.9270246,86267.0,86266.0,0.0332]
[1741438643690,0.9270246,86267.0,86266.0,0.001]
[1741438643893,0.1159494,86260.0,86259.0,0.0327]
[1741438644089,0.1973494,86260.0,86259.0,0.0327]
[1741438644697,0.2296494,86260.0,86259.0,0.0634]
[1741438644898,0.2599494,86260.0,86259.0,0.0634]
[1741438645790,0.2599494,86260.0,86259.0,0.0654]
[1741438647100,0.2599494,86260.0,86259.0,0.0979]
[1741438647995,0.2599494,86260.0,86259.0,0.0672]
[1741438648196,0.8384494,86260.0,86259.0,0.002]
[1741438648397,0.1159709,86244.0,86243.0,0.0979]
[1741438648588,0.9281309,86244.0,86243.0,0.11091987]
[1741438648991,0.93995199,86244.0,86243.0,0.11091987]
[1741438649595,0.93995199,86244.0,86243.0,0.11491987]
[1741438649789,0.94197052,86244.0,86243.0,0.11491987]
[1741438651691,0.94197052,86244.0,86243.0,0.1019]
[1741438651894,0.94197052,86244.0,86243.0,0.1149367]
[1741438655093,0.93014943,86244.0,86243.0,0.1149367]
[1741438655498,0.9281309,86244.0,86243.0,0.1149367]
[1741438655799,0.9281309,86244.0,86243.0,0.11494449]
[1741438656307,0.94553091,86244.0,86243.0,0.11494449]
[1741438658904,0.82956001,86244.0,86243.0,0.11494449]
[1741438659108,0.82956001,86244.0,86243.0,0.23091679]
[1741438659812,0.94553091,86244.0,86243.0,0.23097856]
[1741438660301,0.73076,86244.0,86243.0,0.38097856]
[1741438660501,0.73076,86244.0,86243.0,0.11500626]
[1741438660708,0.8467309,86244.0,86243.0,0.23097856]
[1741438662899,0.73076,86244.0,86243.0,0.23097856]
[1741438663098,0.73076,86244.0,86243.0,0.38097856]
[1741438664810,0.8467309,86244.0,86243.0,0.38097856]
[1741438665711,0.73076,86244.0,86243.0,0.38097856]
[1741438666208,0.73076,86244.0,86243.0,0.23097856]
[1741438666400,0.73076,86244.0,86243.0,0.38097856]
[1741438666995,0.73076,86244.0,86243.0,0.23097856]
[1741438667200,0.73076,86244.0,86243.0,0.38097856]
[1741438667401,0.73076,86244.0,86243.0,0.23097856]
[1741438667601,0.8467309,86244.0,86243.0,0.23097856]
[1741438668012,0.73076,86244.0,86243.0,0.23097856]
[1741438669910,0.73076,86244.0,86243.0,0.23098721]
[1741438670301,0.73076,86244.0,86243.0,0.59178721]
[1741438670703,0.0814,86245.0,86243.0,0.59178721]
[1741438670902,0.0814,86245.0,86244.0,0.12908581]
[1741438671306,0.0814,86245.0,86244.0,0.19198581]
[1741438674118,0.0814,86245.0,86244.0,0.19598581]
[1741438674309,0.1159618,86251.0,86250.0,0.0579809]
[1741438674505,0.1973218,86251.0,86250.0,0.43189581]
[1741438675016,0.1973218,86251.0,86250.0,0.49349581]
[1741438675717,0.08136,86251.0,86250.0,0.49349581]
[1741438676116,0.09876001,86251.0,86250.0,0.49349581]
[1741438676317,0.2281215,86251.0,86250.0,0.49349581]
[1741438676514,0.24552151,86251.0,86250.0,0.49549581]
[1741438677113,0.12956001,86251.0,86250.0,0.49549581]
[1741438677314,0.24552151,86251.0,86250.0,0.49549581]
[1741438678536,0.24552151,86251.0,86250.0,0.13469581]
[1741438678730,0.24552151,86251.0,86250.0,0.49549581]
[1741438679131,0.12956001,86251.0,86250.0,0.49549581]
[1741438679332,0.09876001,86251.0,86250.0,0.49549581]
[1741438679626,0.13186001,86251.0,86250.0,0.49549581]
[1741438681439,0.24782151,86251.0,86250.0,0.49549581]
[1741438681937,0.13186001,86251.0,86250.0,0.49549581]
[1741438682641,0.16216001,86251.0,86250.0,0.49549581]
[1741438682938,0.27812151,86251.0,86250.0,0.49549581]
[1741438683340,0.16216001,86251.0,86250.0,0.49549581]
[1741438684934,0.01740001,86251.0,86250.0,0.49549581]
[1741438685144,0.09876001,86251.0,86250.0,0.49549581]
[1741438685840,0.01740001,86252.0,86250.0,0.43751491]
[1741438686043,0.01740001,86252.0,86251.0,0.12907641]
[1741438686545,0.01740001,86252.0,86251.0,0.19517641]
[1741438687031,0.04900001,86252.0,86251.0,0.19517641]
[1741438688429,0.04900001,86252.0,86251.0,0.01311491]
[1741438688635,0.19536021,86252.0,86251.0,0.01311491]
[1741438688929,0.19536021,86252.0,86251.0,0.16027641]
[1741438689136,0.19536021,86252.0,86251.0,0.1603429]
[1741438689637,0.07940001,86252.0,86251.0,0.1603429]
[1741438691039,0.07940001,86252.0,86251.0,0.16035247]
[1741438691846,0.07940001,86252.0,86251.0,0.16135247]
[1741438692545,0.19536021,86252.0,86251.0,0.16135247]
[1741438693047,0.19536021,86252.0,86251.0,0.04539097]
[1741438693248,0.19536021,86252.0,86251.0,0.25275325]
[1741438694845,0.19536021,86252.0,86251.0,0.61355325]
[1741438695351,0.07940001,86252.0,86251.0,0.72951475]
[1741438696251,0.062,86252.0,86251.0,0.72951475]
[1741438696549,0.07940001,86252.0,86251.0,0.72951475]
[1741438696739,0.04900001,86252.0,86251.0,0.72951475]
[1741438698654,0.01740001,86252.0,86251.0,0.52215247]
[1741438699039,0.05040001,86252.0,86251.0,0.552447]
[1741438699753,0.08230001,86252.0,86251.0,0.552447]
[1741438701352,0.08230001,86252.0,86251.0,0.55243463]
[1741438701553,0.08230001,86252.0,86251.0,0.5392615]
[1741438701752,0.08230001,86252.0,86251.0,0.55242772]